fUSD/lending_fUSD_20241227
["ID","MTS","AMOUNT","RATE_DAILY","PERIOD"]
[346757327,1735265433512,-6388.76,0.0001199,2]
[346757328,1735265433523,-1104.77,0.0001199,2]
[346757329,1735265433532,-500.0,0.0001199,2]
[346757330,1735265433542,-10510.39,0.0001199,2]
[346757331,1735265433554,-4079.96,0.0001199,2]
[346757332,1735265433563,-9507.23,0.0001199,2]
[346757333,1735265433574,-6202.69,0.0001199,2]
[346757334,1735265433584,-2871.69,0.0001199,2]
[346757335,1735265433594,-7627.37,0.0001199,2]
[346757336,1735265433604,-3238.67,0.0001199,2]
[346757337,1735265433614,-2568.29,0.0001199,2]
[346757338,1735265433624,-3521.79,0.0001199,2]
[346757339,1735265433634,-828.18,0.0001199,2]
[346757340,1735265433644,-998.48,0.0001199,2]
[346757341,1735265433659,-3008.31,0.0001199,2]
[346757342,1735265433669,-500.0,0.0001199,2]
[346757343,1735265433679,-2253.39,0.0001199,2]
[346757344,1735265433689,-500.0,0.00011991,2]
[346757345,1735265433698,-500.0,0.00011991,2]
[346757346,1735265433708,-500.0,0.00011991,2]
[346757347,1735265433718,-500.0,0.00011991,2]
[346757348,1735265433727,-175.72994823,0.00011991,2]
[346757349,1735265433737,-500.0,0.00011991,2]
[346757350,1735265433746,-500.44037507,0.00011991,2]
[346757351,1735265433756,-589.31,0.00011991,2]
[346757352,1735265433766,-500.0,0.00011991,2]
[346757353,1735265433776,-500.0,0.00011991,2]
[346757354,1735265433786,-500.0,0.00011991,2]
[346757355,1735265433796,-500.0,0.00011991,2]
[346757356,1735265433809,-992.71,0.00011991,2]
[346757357,1735265433819,-596.9,0.00011991,2]
[346757358,1735265433829,-502.09450798,0.00011991,2]
[346757359,1735265433838,-502.78540885,0.00011991,2]
[346757360,1735265433847,-500.0,0.00011991,2]
[346757361,1735265433857,-309.4849969,0.00011991,2]
[346757362,1735265433867,-500.0,0.00011991,2]
[346757363,1735265433876,-498.97108776,0.00011991,2]
[346757364,1735265433886,-501.46919036,0.00011991,2]
[346757365,1735265433896,-2052.43,0.00011991,2]
[346757366,1735265433910,-500.0,0.00011991,2]
[346757367,1735265433920,-500.0,0.00011991,2]
[346757368,1735265433930,-498.93406428,0.00011991,2]
[346757369,1735265433940,-872.09,0.00011991,2]
[346757370,1735265433950,-500.0,0.00011991,2]
[346757371,1735265433961,-500.0,0.00011991,2]
[346757372,1735265433971,-500.0,0.00011991,2]
[346757373,1735265433981,-875.73,0.00011991,2]
[346757374,1735265433991,-500.0,0.00011991,2]
[346757375,1735265434000,-356.64438807,0.00011991,2]
[346757376,1735265434010,-498.89079737,0.00011991,2]
[346757377,1735265434019,-706.21,0.00011991,2]
[346757378,1735265434029,-500.0,0.00011991,2]
[346757379,1735265434039,-501.78734914,0.00011991,2]
[346757380,1735265434049,-500.39288522,0.00011991,2]
[346757381,1735265434059,-500.0,0.00011991,2]
[346757382,1735265434069,-500.0,0.00011991,2]
[346757383,1735265434078,-500.0,0.00011991,2]
[346757384,1735265434088,-500.0,0.00011991,2]
[346757385,1735265434098,-500.0,0.00011991,2]
[346757386,1735265434108,-500.0,0.00011991,2]
[346757387,1735265434118,-499.05554573,0.00011991,2]
[346757388,1735265434128,-500.0,0.00011991,2]
[346757389,1735265434138,-500.0,0.00011991,2]
[346757390,1735265434158,-500.0,0.00011991,2]
[346757391,1735265434169,-651.19,0.00011991,2]
[346757392,1735265434180,-500.0,0.00011991,2]
[346757393,1735265434190,-500.0,0.00011991,2]
[346757394,1735265434200,-725.1,0.00011991,2]
[346757395,1735265434210,-1341.22,0.00011991,2]
[346757396,1735265434220,-500.0,0.00011991,2]
[346757397,1735265434230,-500.0,0.00011991,2]
[346757398,1735265434240,-500.0,0.00011991,2]
[346757399,1735265434251,-500.0,0.00011991,2]
[346757400,1735265434261,-500.0,0.00011991,2]
[346757401,1735265434271,-501.34801368,0.00011991,2]
[346757402,1735265434281,-500.0,0.00011991,2]
[346757403,1735265434291,-500.14298607,0.00011991,2]
[346757404,1735265434305,-848.13,0.00011991,2]
[346757405,1735265434315,-500.0,0.00011991,2]
[346757406,1735265434325,-498.96815615,0.00011991,2]
[346757407,1735265434335,-961.41,0.00011991,2]
[346757408,1735265434345,-501.50756874,0.00011991,2]
[346757409,1735265434355,-501.00916915,0.00011991,2]
[346757410,1735265434366,-498.94040213,0.00011991,2]
[346757411,1735265434375,-607.6,0.00011991,2]
[346757412,1735265434385,-500.0,0.00011991,2]
[346757413,1735265434395,-511.85315961,0.00011991,2]
[346757414,1735265434408,-500.0,0.00011991,2]
[346757415,1735265434417,-500.0,0.00011991,2]
[346757416,1735265434427,-500.0,0.00011991,2]
[346757417,1735265434437,-505.01455143,0.00011991,2]
[346757418,1735265434447,-2153.85,0.00011991,2]
[346757419,1735265434458,-918.43,0.00011991,2]
[346757420,1735265434470,-1614.85,0.00011991,2]
[346757421,1735265434479,-503.05524832,0.00011991,2]
[346757422,1735265434489,-656.69,0.00011991,2]
[346757423,1735265434499,-821.98,0.00011991,2]
[346757424,1735265434509,-500.0,0.00011991,2]
[346757425,1735265434520,-500.0,0.00011991,2]
[346757426,1735265434530,-501.53188739,0.00011991,2]
[346757427,1735265434539,-1454.73,0.00011991,2]
[346757428,1735265434551,-498.74567395,0.00011991,2]
[346757429,1735265434560,-502.11122816,0.00011991,2]
[346757430,1735265434569,-502.42386006,0.00011991,2]
[346757431,1735265434579,-500.0,0.00011991,2]
[346757432,1735265434588,-500.0,0.00011991,2]
[346757433,1735265434598,-501.79497573,0.00011991,2]
[346757434,1735265434607,-500.0,0.00011991,2]
[346757435,1735265434616,-500.0,0.00011991,2]
[346757436,1735265434626,-500.0,0.00011991,2]
[346757437,1735265434637,-1391.91,0.00011991,2]
[346757438,1735265434647,-200.84138276,0.00011991,2]
[346757439,1735265434658,-502.0283432,0.00011991,2]
[346757440,1735265434668,-501.64074889,0.00011991,2]
[346757441,1735265434678,-498.92976953,0.00011991,2]
[346757442,1735265434687,-308.29973016,0.00011991,2]
[346757443,1735265434696,-502.73550792,0.00011991,2]
[346757444,1735265434706,-500.0,0.00011991,2]
[346757445,1735265434715,-1057.94,0.00011991,2]
[346757446,1735265434725,-500.0,0.00011991,2]
[346757447,1735265434734,-500.0,0.00011991,2]
[346757448,1735265434744,-500.0,0.00011991,2]
[346757449,1735265434754,-500.0,0.00011991,2]
[346757450,1735265434766,-500.0,0.00011991,2]
[346757451,1735265434775,-500.0,0.00011991,2]
[346757452,1735265434786,-500.0,0.00011991,2]
[346757453,1735265434795,-500.0,0.00011991,2]
[346757454,1735265434806,-500.0,0.00011991,2]
[346757455,1735265434816,-909.71,0.00011991,2]
[346757456,1735265434841,-500.0,0.00011991,2]
[346757457,1735265434851,-500.0,0.00011991,2]
[346757458,1735265434861,-545.77,0.00011991,2]
[346757459,1735265434871,-500.0,0.00011991,2]
[346757460,1735265434881,-504.33357482,0.00011991,2]
[346757461,1735265434891,-500.0,0.00011991,2]
[346757462,1735265434900,-498.86147453,0.00011991,2]
[346757463,1735265434912,-500.0,0.00011991,2]
[346757464,1735265434922,-500.0,0.00011991,2]
[346757465,1735265434932,-498.49120855,0.00011991,2]
[346757466,1735265434941,-500.0,0.00011991,2]
[346757467,1735265434950,-500.0,0.00011991,2]
[346757468,1735265434960,-699.83,0.00011991,2]
[346757469,1735265434969,-209.8273536,0.00011991,2]
[346757470,1735265434979,-500.0,0.00011991,2]
[346757471,1735265434990,-500.0,0.00011991,2]
[346757472,1735265434999,-500.0,0.00011991,2]
[346757473,1735265435009,-502.1728444,0.00011991,2]
[346757474,1735265435019,-498.69930847,0.00011991,2]
[346757475,1735265435028,-894.05,0.00011991,2]
[346757476,1735265435038,-500.0,0.00011991,2]
[346757477,1735265435048,-500.0,0.00011991,2]
[346757478,1735265435059,-198.01447782,0.00011991,2]
[346757479,1735265435069,-500.0,0.00011991,2]
[346757480,1735265435078,-501.19364934,0.00011991,2]
[346757481,1735265435087,-500.0,0.00011991,2]
[346757482,1735265435096,-500.0,0.00011991,2]
[346757483,1735265435106,-498.74893971,0.00011991,2]
[346757484,1735265435116,-500.0,0.00011991,2]
[346757485,1735265435126,-500.0,0.00011991,2]
[346757486,1735265435135,-500.0,0.00011991,2]
[346757487,1735265435145,-500.0,0.00011991,2]
[346757488,1735265435156,-500.0,0.00011991,2]
[346757489,1735265435165,-502.15664624,0.00011991,2]
[346757490,1735265435175,-500.0,0.00011991,2]
[346757491,1735265435184,-500.0,0.00011991,2]
[346757492,1735265435193,-500.0,0.00011991,2]
[346757493,1735265435203,-498.85723593,0.00011991,2]
[346757494,1735265435212,-1484.67,0.00011991,2]
[346757495,1735265435222,-1153.06,0.00011991,2]
[346757496,1735265435231,-501.69416685,0.00011991,2]
[346757497,1735265435240,-500.0,0.00011991,2]
[346757498,1735265435411,-500.0,0.00011991,2]
[346757499,1735265435421,-500.0,0.00011991,2]
[346757500,1735265435430,-500.0,0.00011991,2]
[346757501,1735265435439,-500.0,0.00011991,2]
[346757502,1735265435449,-500.58655691,0.00011991,2]
[346757503,1735265435459,-752.28,0.00011991,2]
[346757504,1735265435471,-501.39727059,0.00011991,2]
[346757505,1735265435480,-636.72,0.00011991,2]
[346757506,1735265435490,-500.0,0.00011991,2]
[346757507,1735265435499,-912.53,0.00011991,2]
[346757508,1735265435508,-500.0,0.00011991,2]
[346757509,1735265435519,-498.86975776,0.00011991,2]
[346757510,1735265435528,-774.96,0.00011991,2]
[346757511,1735265435537,-1153.7,0.00011991,2]
[346757512,1735265435548,-307.48457568,0.00011991,2]
[346757513,1735265435557,-500.0,0.00011991,2]
[346757514,1735265435566,-500.0,0.00011991,2]
[346757515,1735265435575,-500.0,0.00011991,2]
[346757516,1735265435585,-1731.18,0.00011991,2]
[346757517,1735265435595,-500.0,0.00011991,2]
[346757518,1735265435604,-500.0,0.00011991,2]
[346757519,1735265435613,-500.0,0.00011991,2]
[346757520,1735265435623,-510.41513751,0.00011991,2]
[346757521,1735265435632,-1837.28,0.00011991,2]
[346757522,1735265435642,-499.0134469,0.00011991,2]
[346757523,1735265435652,-498.30365105,0.00011991,2]
[346757524,1735265435664,-498.7952457,0.00011991,2]
[346757525,1735265435673,-501.35053129,0.00011991,2]
[346757526,1735265435683,-501.58834854,0.00011991,2]
[346757527,1735265435693,-500.0,0.00011991,2]
[346757528,1735265435702,-303.37345515,0.00011991,2]
[346757529,1735265435722,-196.62654485,0.00011991,2]
[346757530,1735265435732,-496.07930974,0.00011991,2]
[346757531,1735265435742,-500.0,0.00011991,2]
[346757532,1735265435751,-500.0,0.00011991,2]
[346757533,1735265435760,-501.86432661,0.00011991,2]
[346757534,1735265435769,-151.129828,0.00011991,2]
[346757535,1735265435799,-353.81316844,0.00011991,2]
[346757536,1735265435809,-500.0,0.00011991,2]
[346757537,1735265435818,-500.0,0.00011991,2]
[346757538,1735265435828,-502.16561259,0.00011991,2]
[346757539,1735265435838,-500.89369368,0.00011991,2]
[346757540,1735265435847,-499.35550445,0.00011991,2]
[346757541,1735265435857,-500.0,0.00011991,2]
[346757542,1735265435866,-646.21,0.00011991,2]
[346757543,1735265435876,-605.69,0.00011991,2]
[346757544,1735265435886,-500.0,0.00011991,2]
[346757545,1735265435895,-502.59604649,0.00011991,2]
[346757546,1735265435907,-500.0,0.00011991,2]
[346757547,1735265435917,-500.0,0.00011991,2]
[346757548,1735265435926,-500.0,0.00011991,2]
[346757549,1735265435936,-500.0,0.00011991,2]
[346757550,1735265435946,-705.59,0.00011991,2]
[346757551,1735265435956,-500.0,0.00011991,2]
[346757552,1735265435966,-500.0,0.00011991,2]
[346757553,1735265435976,-503.70363516,0.00011991,2]
[346757554,1735265435985,-500.0,0.00011991,2]
[346757555,1735265435995,-500.0,0.00011991,2]
[346757556,1735265436004,-500.0,0.00011991,2]
[346757557,1735265436013,-500.0,0.00011991,2]
[346757558,1735265436023,-500.0,0.00011991,2]
[346757559,1735265436033,-500.0,0.00011991,2]
[346757560,1735265436042,-500.0,0.00011991,2]
[346757561,1735265436052,-1058.95,0.00011991,2]
[346757562,1735265436061,-500.0,0.00011991,2]
[346757563,1735265436071,-500.0,0.00011991,2]
[346757564,1735265436080,-500.91877142,0.00011991,2]
[346757565,1735265436089,-500.0,0.00011991,2]
[346757566,1735265436099,-500.0,0.00011991,2]
[346757567,1735265436108,-6231.8,0.00011991,2]
[346757568,1735265436118,-500.0,0.00011991,2]
[346757569,1735265436127,-498.90427177,0.00011991,2]
[346757570,1735265436137,-500.0,0.00011991,2]
[346757571,1735265436146,-500.0,0.00011991,2]
[346757572,1735265436159,-500.0,0.00011991,2]
[346757573,1735265436168,-500.0,0.00011991,2]
[346757574,1735265436177,-500.0,0.00011991,2]
[346757575,1735265436187,-500.0,0.00011991,2]
[346757576,1735265436196,-499.01733329,0.00011991,2]
[346757577,1735265436207,-500.0,0.00011991,2]
[346757578,1735265436216,-498.5473279,0.00011991,2]
[346757579,1735265436226,-500.0,0.00011991,2]
[346757580,1735265436236,-890.42,0.00011991,2]
[346757581,1735265436245,-500.0,0.00011991,2]
[346757582,1735265436255,-502.89290903,0.00011991,2]
[346757583,1735265436265,-498.90279076,0.00011991,2]
[346757584,1735265436275,-500.0,0.00011991,2]
[346757585,1735265436283,-501.88408152,0.00011991,2]
[346757586,1735265436293,-500.0,0.00011991,2]
[346757587,1735265436302,-2285.26,0.00011991,2]
[346757588,1735265436312,-1013.97,0.00011991,2]
[346757589,1735265436321,-501.40754045,0.00011991,2]
[346757590,1735265436331,-194.35331524,0.00011991,2]
[346757591,1735265436340,-500.0,0.00011991,2]
[346757592,1735265436349,-1189.28,0.00011991,2]
[346757593,1735265436360,-500.0,0.00011991,2]
[346757594,1735265436369,-500.80787877,0.00011991,2]
[346757595,1735265436378,-3492.34,0.00011991,2]
[346757596,1735265436388,-20.78018669,0.00011991,2]
[346757597,1735265436401,-479.21981331,0.00011991,2]
[346757598,1735265436413,-500.82896561,0.00011991,2]
[346757599,1735265436422,-500.0,0.00011991,2]
[346757600,1735265436432,-922.29,0.00011991,2]
[346757601,1735265436442,-500.52872825,0.00011991,2]
[346757602,1735265436452,-500.0,0.00011991,2]
[346757603,1735265436463,-454.26409058,0.00011991,2]
[346757604,1735265436477,-1357.17,0.00011991,2]
[346757605,1735265436488,-500.0,0.00011991,2]
[346757606,1735265436498,-835.23,0.00011991,2]
[346757607,1735265436508,-499.05578138,0.00011991,2]
[346757608,1735265436519,-500.0,0.00011991,2]
[346757609,1735265436528,-500.0,0.00011991,2]
[346757610,1735265436538,-500.0,0.00011991,2]
[346757611,1735265436549,-500.0,0.00011991,2]
[346757612,1735265436559,-500.0,0.00011991,2]
[346757613,1735265436569,-2168.92,0.00011991,2]
[346757614,1735265436580,-500.0,0.00011991,2]
[346757615,1735265436590,-2742.46,0.00011991,2]
[346757616,1735265436600,-2016.01,0.00011991,2]
[346757617,1735265436609,-500.0,0.00011991,2]
[346757618,1735265436619,-515.14,0.00011991,2]
[346757619,1735265436629,-613.30782387,0.00011991,2]
[346757620,1735265436638,-702.66,0.00011991,2]
[346757621,1735265436648,-1095.0,0.00011991,2]
[346757622,1735265436659,-753.64,0.00011991,2]
[346757623,1735265436668,-500.59760015,0.00011991,2]
[346757624,1735265436678,-500.0,0.00011991,2]
[346757625,1735265436687,-498.84378801,0.00011991,2]
[346757626,1735265436697,-832.07,0.00011991,2]
[346757627,1735265436706,-500.0,0.00011991,2]
[346757628,1735265436715,-548.05,0.00011991,2]
[346757629,1735265436725,-500.0,0.00011991,2]
[346757630,1735265436735,-694.84,0.00011991,2]
[346757631,1735265436744,-623.57,0.00011991,2]
[346757632,1735265436755,-500.0,0.00011991,2]
[346757633,1735265436764,-500.0,0.00011991,2]
[346757634,1735265436774,-500.0,0.00011991,2]
[346757635,1735265436783,-1040.48,0.00011991,2]
[346757636,1735265436792,-462.04863926,0.00011991,2]
[346757637,1735265436803,-502.35400141,0.00011991,2]
[346757638,1735265436813,-500.0,0.00011991,2]
[346757639,1735265436822,-500.0,0.00011991,2]
[346757640,1735265436832,-500.0,0.00011991,2]
[346757641,1735265436842,-1717.61,0.00011991,2]
[346757642,1735265436852,-690.7,0.00011991,2]
[346757643,1735265436862,-498.86648882,0.00011991,2]
[346757644,1735265436872,-500.0,0.00011991,2]
[346757645,1735265436882,-500.0,0.00011991,2]
[346757646,1735265436891,-502.09,0.00011991,2]
[346757647,1735265436900,-19015.31,0.00011991,2]
[346757648,1735265436912,-156.473705,0.00011991,2]
[346757649,1735265436922,-155.506852,0.00011991,2]
[346757650,1735265436931,-500.0,0.00011991,2]
[346757651,1735265436941,-1250.577415,0.00011991,2]
[346757652,1735265436951,-500.0,0.00011991,2]
[346757653,1735265436961,-3308.38,0.00011991,2]
[346757654,1735265436970,-768.92,0.00011991,2]
[346757655,1735265436979,-500.0,0.00011991,2]
[346757656,1735265436989,-550.35,0.00011991,2]
[346757657,1735265436999,-928.767599,0.00011991,2]
[346757658,1735265437010,-500.0,0.00011991,2]
[346757659,1735265437020,-498.82835944,0.00011991,2]
[346757660,1735265437030,-500.0,0.00011991,2]
[346757661,1735265437040,-500.0,0.00011991,2]
[346757662,1735265437050,-1099.16,0.00011991,2]
[346757663,1735265437059,-498.69084185,0.00011991,2]
[346757664,1735265437069,-500.0,0.00011991,2]
[346757665,1735265437079,-500.0,0.00011991,2]
[346757666,1735265437089,-2227.57,0.00011991,2]
[346757667,1735265437099,-507.04,0.00011991,2]
[346757668,1735265437108,-545.29750137,0.00011991,2]
[346757669,1735265437118,-1021.2,0.00011991,2]
[346757670,1735265437127,-672.13,0.00011991,2]
[346757671,1735265437137,-500.0,0.00011991,2]
[346757672,1735265437147,-1298.52,0.00011991,2]
[346757673,1735265437158,-2230.0,0.00011991,2]
[346757674,1735265437168,-500.0,0.00011991,2]
[346757675,1735265437178,-500.0,0.00011991,2]
[346757676,1735265437187,-1118.81,0.00011991,2]
[346757677,1735265437197,-500.0,0.00011991,2]
[346757678,1735265437206,-4489.34,0.00011991,2]
[346757679,1735265437216,-500.0,0.00011991,2]
[346757680,1735265437226,-500.0,0.00011991,2]
[346757681,1735265437236,-1414.12,0.00011991,2]
[346757682,1735265437246,-500.0,0.00011991,2]
[346757683,1735265437256,-500.0,0.00011991,2]
[346757684,1735265437266,-500.0,0.00011991,2]
[346757685,1735265437276,-776.51,0.00011991,2]
[346757686,1735265437286,-544.67,0.00011991,2]
[346757687,1735265437295,-618.7,0.00011991,2]
[346757688,1735265437305,-500.0,0.00011991,2]
[346757689,1735265437314,-504.09516942,0.00011991,2]
[346757690,1735265437324,-500.0,0.00011991,2]
[346757691,1735265437333,-500.0,0.00011991,2]
[346757692,1735265437343,-5978.95,0.00011991,2]
[346757693,1735265437353,-500.0,0.00011991,2]
[346757694,1735265437362,-3273.77,0.00011991,2]
[346757695,1735265437372,-248.25951881,0.00011991,2]
[346757696,1735265437381,-647.22,0.00011991,2]
[346757697,1735265437391,-500.0,0.00011991,2]
[346757698,1735265437400,-500.0,0.00011991,2]
[346757699,1735265437411,-1000.12,0.00011991,2]
[346757700,1735265437421,-498.6427085,0.00011991,2]
[346757701,1735265437431,-500.0,0.00011991,2]
[346757702,1735265437440,-2771.29,0.00011991,2]
[346757703,1735265437450,-500.0,0.00011991,2]
[346757704,1735265437462,-500.0,0.00011991,2]
[346757705,1735265437474,-500.0,0.00011991,2]
[346757706,1735265437483,-1832.54,0.00011991,2]
[346757707,1735265437494,-500.0,0.00011991,2]
[346757708,1735265437503,-749.88,0.00011991,2]
[346757709,1735265437514,-539.92081243,0.00011991,2]
[346757710,1735265437523,-4869.48,0.00011991,2]
[346757711,1735265437533,-498.16342532,0.00011991,2]
[346757712,1735265437547,-500.0,0.00011991,2]
[346757713,1735265437557,-500.0,0.00011991,2]
[346757714,1735265437567,-500.0,0.00011991,2]
[346757715,1735265437577,-500.0,0.00011991,2]
[346757716,1735265437586,-2043.99,0.00011991,2]
[346757717,1735265437596,-505.88585902,0.00011991,2]
[346757718,1735265437605,-1045.18,0.00011991,2]
[346757719,1735265437615,-15190.29,0.00011991,2]
[346757720,1735265437625,-500.0,0.00011991,2]
[346757721,1735265437634,-500.0,0.00011991,2]
[346757722,1735265437643,-1069.61,0.00011991,2]
[346757723,1735265437653,-588.54,0.00011991,2]
[346757724,1735265437665,-483.70952059,0.00011991,2]
[346757725,1735265437675,-369.75537811,0.00011991,2]
[346757726,1735265437685,-2944.71,0.00011991,2]
[346757727,1735265437694,-585.57,0.00011991,2]
[346757728,1735265437704,-1512.31,0.00011991,2]
[346757729,1735265437713,-500.0,0.00011991,2]
[346757730,1735265437723,-501.62012438,0.00011991,2]
[346757731,1735265437733,-500.0,0.00011991,2]
[346757732,1735265437742,-500.0,0.00011991,2]
[346757733,1735265437751,-510.47101055,0.00011991,2]
[346757734,1735265437761,-511.14284629,0.00011991,2]
[346757735,1735265437770,-503.65939606,0.00011991,2]
[346757736,1735265437780,-500.0,0.00011991,2]
[346757737,1735265437932,-1511.62,0.00011991,2]
[346757739,1735265437942,-500.0,0.00011991,2]
[346757740,1735265437951,-1806.83,0.00011991,2]
[346757742,1735265437961,-509.27085302,0.00011991,2]
[346757743,1735265437971,-500.0,0.00011991,2]
[346757744,1735265437981,-502.41051992,0.00011991,2]
[346757745,1735265437990,-972.9,0.00011991,2]
[346757746,1735265438000,-500.0,0.00011991,2]
[346757747,1735265438010,-896.8,0.00011991,2]
[346757748,1735265438020,-1433.03,0.00011991,2]
[346757749,1735265438030,-500.0,0.00011991,2]
[346757750,1735265438039,-500.99498856,0.00011991,2]
[346757751,1735265438048,-736.72,0.00011991,2]
[346757752,1735265438058,-501.1971509,0.00011991,2]
[346757753,1735265438068,-500.0,0.00011991,2]
[346757754,1735265438078,-500.0,0.00011991,2]
[346757755,1735265438087,-500.0,0.00011991,2]
[346757756,1735265438097,-500.0,0.00011991,2]
[346757757,1735265438106,-2490.4,0.00011991,2]
[346757758,1735265438116,-1729.64,0.00011991,2]
[346757760,1735265438125,-500.0,0.00011991,2]
[346757762,1735265438136,-502.40169086,0.00011991,2]
[346757764,1735265438145,-500.0,0.00011991,2]
[346757765,1735265438154,-500.0,0.00011991,2]
[346757766,1735265438168,-502.18726508,0.00011991,2]
[346757767,1735265438178,-566.98,0.00011991,2]
[346757768,1735265438187,-500.0,0.00011991,2]
[346757769,1735265438196,-500.0,0.00011991,2]
[346757770,1735265438206,-15981.96,0.00011991,2]
[346757771,1735265438216,-500.0,0.00011991,2]
[346757772,1735265438225,-628.1435212,0.00011991,2]
[346757773,1735265438235,-2552.96,0.00011991,2]
[346757774,1735265438244,-500.0,0.00011991,2]
[346757775,1735265438254,-13707.06,0.00011991,2]
[346757776,1735265438264,-500.0,0.00011991,2]
[346757777,1735265438274,-429.03341598,0.00011991,2]
[346757778,1735265438283,-6175.88,0.00011991,2]
[346757779,1735265438292,-727.59,0.00011991,2]
[346757780,1735265438302,-500.0,0.00011991,2]
[346757781,1735265438311,-475.9684241,0.00011991,2]
[346757782,1735265438327,-24.0315759,0.00011991,2]
[346757783,1735265438337,-233.1644241,0.00011991,2]
[346757784,1735265438348,-267.63397546,0.00011991,2]
[346757785,1735265438358,-623.37149322,0.00011991,2]
[346757786,1735265438370,-374.01850678,0.00011991,2]
[346757787,1735265438380,-371.70199867,0.00011991,2]
[346757788,1735265438391,-128.29800133,0.00011991,2]
[346757789,1735265438401,-501.69417028,0.00011991,2]
[346757790,1735265438412,-192.90782839,0.00011991,2]
[346757791,1735265438424,-344.7799999,0.00011991,2]
[346757792,1735265438435,-531.65387139,0.00011991,2]
[346757793,1735265438446,-1706.8058045,0.00011991,2]
[346757794,1735265438510,-1204.50000005,0.00011991,2]
[346757796,1735265440215,-500.0,0.00011991,2]
[346757797,1735265440227,-1588.74249577,0.00011991,2]
[346757798,1735265440238,-1355.9,0.00011991,2]
[346757799,1735265440249,-2625.61,0.00011991,2]
[346757800,1735265440260,-501.61543875,0.00011991,2]
[346757801,1735265440271,-963.61,0.00011991,2]
[346757802,1735265440280,-500.0,0.00011991,2]
[346757803,1735265440290,-218.57658007,0.00011991,2]
[346757804,1735265440299,-500.0,0.00011991,2]
[346757805,1735265440309,-1506.29,0.00011991,2]
[346757806,1735265440319,-500.0,0.00011991,2]
[346757807,1735265440328,-500.0,0.00011991,2]
[346757808,1735265440338,-500.96910912,0.00011991,2]
[346757809,1735265440347,-1593.27,0.00011991,2]
[346757810,1735265440356,-2918.97,0.00011991,2]
[346757811,1735265440366,-500.0,0.00011991,2]
[346757812,1735265440375,-500.0,0.00011991,2]
[346757813,1735265440385,-200.8970797,0.00011991,2]
[346757814,1735265440395,-1195.01,0.00011991,2]
[346757815,1735265440404,-1207.24,0.00011991,2]
[346757816,1735265440416,-500.0,0.00011991,2]
[346757817,1735265440425,-500.91513843,0.00011991,2]
[346757818,1735265440434,-502.31068071,0.00011991,2]
[346757819,1735265440444,-2212.16,0.00011991,2]
[346757820,1735265440454,-500.0,0.00011991,2]
[346757821,1735265440464,-501.29727228,0.00011991,2]
[346757822,1735265440476,-500.0,0.00011991,2]
[346757823,1735265440485,-390.36121487,0.00011991,2]
[346757824,1735265440495,-500.0,0.00011991,2]
[346757825,1735265440504,-2043.33,0.00011991,2]
[346757826,1735265440514,-500.0,0.00011991,2]
[346757827,1735265440523,-500.0,0.00011991,2]
[346757828,1735265440533,-585.73,0.00011991,2]
[346757829,1735265440542,-500.0,0.00011991,2]
[346757830,1735265440552,-500.0,0.00011991,2]
[346757831,1735265440562,-503.8269766,0.00011991,2]
[346757832,1735265440571,-500.0,0.00011991,2]